[Event "CZE-ch Amateurs 2022"]
[Site "Luhacovice"]
[Date "2022.03.13"]
[Round "2.7"]
[White "Dvorak, Milan"]
[Black "Cagasik, Tomas"]
[Result "1/2-1/2"]
[ECO "B12"]
[WhiteElo "1838"]
[BlackElo "2177"]
[Annotator "ChessBase"]
[PlyCount "54"]
[EventDate "2022.03.12"]
[EventType "swiss"]
[EventCountry "CZE"]
[SourceTitle "playchess.com"]
[Source "ChessBase"]
[SourceQuality "1"]
[TimeControl "5400+30"]

1. e4 {[%emt 0:00:20]} c6 {[%emt 0:00:08]} 2. d4 {[%emt 0:00:10]} d5 {[%emt 0:00:06]} 3. Nd2 {[%emt 0:00:29]} dxe4 {[%emt 0:01:30]} 4. Nxe4 {[%emt 0:00:03]} g6 {[%emt 0:00:58]} 5. Nf3 {[%emt 0:01:21]} Bg7 {[%emt 0:00:21]} 6. c3 {[%emt 0:00:12]} Nf6 {[%emt 0:02:01]} 7. Ng3 {[%emt 0:02:18]} Nbd7 {[%emt 0:04:57]} 8. Bc4 {[%emt 0:00:51]} Nd5 {[%emt 0:02:29]} 9. O-O {[%emt 0:01:30]} N7b6 {[%emt 0:02:01]} 10. Bb3 {[%emt 0:00:11]} Bg4 {[%emt 0:01:40]} 11. h3 {[%emt 0:00:06]} Bxf3 {[%emt 0:01:14]} 12. Qxf3 {[%emt 0:00:08]} O-O {[%emt 0:00:41]} 13. Re1 {[%emt 0:02:54]} Re8 {[%emt 0:14:49]} 14. Bg5 {[%emt 0:08:32]} h6 {[%emt 0:08:10]} 15. Be3 {[%emt 0:03:37]} e6 {[%emt 0:03:08]} 16. Rad1 {[%emt 0:02:26]} Nxe3 {[%emt 0:02:27]} 17. fxe3 {[%emt 0:03:26]} Qe7 {[%emt 0:02:46]} 18. Rf1 {[%emt 0:07:14]} Rad8 {[%emt 0:01:22]} 19. Ne4 {[%emt 0:03:08]} Rd7 {[%emt 0:07:05]} 20. Rf2 {[%emt 0:04:04]} Rc7 {[%emt 0:03:12]} 21. Rdf1 {[%emt 0:01:47]} Rf8 {[%emt 0:01:58]} 22. Qg3 {[%emt 0:05:39]} Rcc8 {[%emt 0:03:30]} 23. Nc5 {[%emt 0:05:28]} Nd5 {[%emt 0:05:02]} 24. e4 {[%emt 0:00:22]} Nf6 {[%emt 0:03:19]} 25. e5 {[%emt 0:08:52]} Nd5 {[%emt 0:11:24]} 26. Ne4 {[%emt 0:00:48]} Rc7 {[%emt 0:00:17]} 27. Nf6+ {[%emt 0:09:32]} Kh8 {[%emt 0:02:15]} 1/2-1/2

[Event "CZE-ch Amateurs 2022"]
[Site "Luhacovice"]
[Date "2022.03.13"]
[Round "2.8"]
[White "Lihotsky, Lukas"]
[Black "Sremanak, Slavomir"]
[Result "1/2-1/2"]
[ECO "A41"]
[WhiteElo "1775"]
[BlackElo "2187"]
[Annotator "ChessBase"]
[PlyCount "59"]
[EventDate "2022.03.12"]
[EventType "swiss"]
[EventCountry "CZE"]
[SourceTitle "playchess.com"]
[Source "ChessBase"]
[SourceQuality "1"]
[TimeControl "5400+30"]

1. d4 {[%emt 0:00:06]} d6 {[%emt 0:00:16]} 2. Nf3 {[%emt 0:00:38]} Bg4 {[%emt 0:00:10]} 3. c4 {[%emt 0:01:27]} Nd7 {[%emt 0:01:17]} 4. e4 {[%emt 0:02:04]} e5 {[%emt 0:00:18]} 5. d5 {[%emt 0:02:00]} Be7 {[%emt 0:00:42]} 6. Be2 {[%emt 0:01:01]} Bxf3 {[%emt 0:00:20]} 7. Bxf3 {[%emt 0:00:02]} Bg5 {[%emt 0:00:08]} 8. Nc3 {[%emt 0:03:01]} Bxc1 {[%emt 0:01:18]} 9. Rxc1 {[%emt 0:00:42]} Ne7 {[%emt 0:00:33]} 10. h4 {[%emt 0:07:02]} O-O {[%emt 0:02:37]} 11. Bg4 {[%emt 0:06:41]} Nf6 {[%emt 0:26:07]} 12. Be2 {[%emt 0:04:17]} h6 {[%emt 0:00:32]} 13. Qd2 {[%emt 0:03:08]} Nh7 {[%emt 0:00:11]} 14. Bd3 {[%emt 0:18:50]} Ng6 {[%emt 0:08:36]} 15. g3 {[%emt 0:00:27]} Qd7 {[%emt 0:04:13]} 16. Nd1 {[%emt 0:05:02]} Nf6 {[%emt 0:04:27]} 17. Ne3 {[%emt 0:02:07]} Ng4 {[%emt 0:00:17]} 18. Nf5 {[%emt 0:03:18]} Ne7 {[%emt 0:05:36]} 19. Qe2 {[%emt 0:02:19]} h5 {[%emt 0:01:02]} 20. f3 {[%emt 0:08:50]} Nxf5 {[%emt 0:00:12]} 21. exf5 {[%emt 0:00:12]} Nf6 {[%emt 0:00:15]} 22. Be4 {[%emt 0:04:58]} c6 {[%emt 0:00:46]} 23. Kf2 {[%emt 0:04:12]} cxd5 {[%emt 0:00:22]} 24. cxd5 {[%emt 0:00:19]} Rfc8 {[%emt 0:01:10]} 25. b3 {[%emt 0:01:07]} Rc7 {[%emt 0:02:19]} 26. Kg2 {[%emt 0:04:00]} Rac8 {[%emt 0:00:29]} 27. Qd2 {[%emt 0:00:50]} Qb5 {[%emt 0:00:35]} 28. Rxc7 {[%emt 0:01:08]} Rxc7 {[%emt 0:00:05]} 29. Kh3 {[%emt 0:06:31]} a5 {[%emt 0:02:09]} 30. Rb1 {[%emt 0:03:01]} 1/2-1/2

[Event "CZE-ch Amateurs 2022"]
[Site "Luhacovice"]
[Date "2022.03.13"]
[Round "2.9"]
[White "Novotny, Jaroslav"]
[Black "Bakalar, Jan"]
[Result "1/2-1/2"]
[ECO "A33"]
[WhiteElo "2190"]
[BlackElo "1820"]
[Annotator "NA"]
[PlyCount "66"]
[EventDate "2022.03.12"]
[EventType "swiss"]
[EventCountry "CZE"]
[SourceTitle "playchess.com"]
[Source "ChessBase"]
[SourceQuality "1"]
[TimeControl "5400+30"]

1. Nf3 {[%emt 0:00:08]} c5 {[%emt 0:01:12]} 2. c4 {[%emt 0:00:53]} Nf6 {[%emt 0:00:21]} 3. Nc3 {[%emt 0:00:28]} e6 {[%emt 0:00:27]} 4. g3 {[%emt 0:00:24]} Nc6 {[%emt 0:02:09]} 5. Bg2 {[%emt 0:00:10]} Be7 {[%emt 0:01:41]} 6. O-O {[%emt 0:00:15]} O-O {[%emt 0:00:12]} 7. d4 {[%emt 0:02:01]} cxd4 {[%emt 0:02:03]} 8. Nxd4 {[%emt 0:00:07]} a6 {[%emt 0:04:06]} 9. b3 {[%emt 0:03:32]} Qc7 {[%emt 0:01:28]} 10. Bb2 {[%emt 0:00:27]} d6 {[%emt 0:00:58]} 11. Rc1 {[%emt 0:01:39]} Bd7 {[%emt 0:01:38]} 12. Nd5 {[%emt 0:01:46]} Qd8 {[%emt 0:05:01]} 13. Nxe7+ {[%emt 0:02:02]} Qxe7 {[%emt 0:00:16]} 14. Qd2 {[%emt 0:00:44]} Rfd8 {[%emt 0:07:08]} 15. Rfd1 {[%emt 0:01:42]} Nxd4 {[%emt 0:00:25]} 16. Qxd4 {[%emt 0:07:24]} Bc6 {[%emt 0:00:30]} 17. e4 {[%emt 0:04:24]} e5 {[%emt 0:03:12]} 18. Qd3 {[%emt 0:05:59]} Qe6 {[%emt 0:05:31]} 19. Rd2 {[%emt 0:05:37]} Qg4 {[%emt 0:01:57]} 20. Qe3 {[%emt 0:03:35]} Nxe4 {[%emt 0:03:46]} 21. f3 {[%emt 0:09:40]} Qg5 {[%emt 0:08:26]} 22. Qxg5 {[%emt 0:00:22]} Nxg5 {[%emt 0:00:04]} 23. Kf2 {[%emt 0:00:45]} f6 {[%emt 0:05:08]} 24. Rcd1 {[%emt 0:01:23]} Nf7 {[%emt 0:00:19]} 25. Ba3 {[%emt 0:00:51]} Kf8 {[%emt 0:03:08]} 26. Bxd6+ {[%emt 0:01:24]} Nxd6 {[%emt 0:00:10]} 27. Rxd6 {[%emt 0:00:04]} Rxd6 {[%emt 0:00:08]} 28. Rxd6 {[%emt 0:00:04]} Ke7 {[%emt 0:00:12]} 29. c5 {[%emt 0:05:39]} Rd8 {[%emt 0:01:48]} 30. Rxd8 {[%emt 0:00:12]} Kxd8 {[%emt 0:00:08]} 31. b4 {[%emt 0:00:37]} Kc7 {[%emt 0:02:11]} 32. Ke3 {[%emt 0:11:10]} Bd5 {[%emt 0:01:53]} 33. a3 {[%emt 0:01:01]} Kc6 {[%emt 0:00:47]} 1/2-1/2

[Event "CZE-ch Amateurs 2022"]
[Site "Luhacovice"]
[Date "2022.03.13"]
[Round "2.10"]
[White "Kovalskyi, Roman"]
[Black "Zvolensky, David"]
[Result "0-1"]
[ECO "C54"]
[WhiteElo "1815"]
[BlackElo "2159"]
[Annotator "ChessBase"]
[PlyCount "71"]
[EventDate "2022.03.12"]
[EventType "swiss"]
[EventCountry "CZE"]
[SourceTitle "playchess.com"]
[Source "ChessBase"]
[SourceQuality "1"]
[TimeControl "5400+30"]

1. e4 {[%emt 0:00:05]} e5 {[%emt 0:00:05]} 2. Nf3 {[%emt 0:00:12]} Nc6 {[%emt 0:00:06]} 3. Bc4 {[%emt 0:00:06]} Bc5 {[%emt 0:00:11]} 4. c3 {[%emt 0:00:04]} Nf6 {[%emt 0:01:02]} 5. d3 {[%emt 0:00:07]} a6 {[%emt 0:00:14]} 6. b4 {[%emt 0:00:27]} Ba7 {[%emt 0:00:06]} 7. a4 {[%emt 0:00:05]} d6 {[%emt 0:04:20]} 8. O-O {[%emt 0:00:37]} h6 {[%emt 0:09:41]} 9. Nbd2 {[%emt 0:02:07]} O-O {[%emt 0:00:09]} 10. Qb3 {[%emt 0:02:01]} Ne7 {[%emt 0:04:30]} 11. Re1 {[%emt 0:02:13]} b5 {[%emt 0:01:15]} 12. axb5 {[%emt 0:14:10]} axb5 {[%emt 0:00:01]} 13. Ra3 {[%emt 0:01:51]} bxc4 {[%emt 0:00:20]} 14. Qa2 {[%emt 0:00:07]} Bxf2+ {[%emt 0:00:54]} 15. Kxf2 {[%emt 0:00:06]} Rxa3 {[%emt 0:00:03]} 16. Qxa3 {[%emt 0:00:11]} cxd3 {[%emt 0:00:12]} 17. c4 {[%emt 0:00:11]} Be6 {[%emt 0:03:55]} 18. Qxd3 {[%emt 0:01:14]} Qb8 {[%emt 0:01:17]} 19. Qc3 {[%emt 0:02:13]} Nc6 {[%emt 0:03:41]} 20. Ba3 {[%emt 0:03:50]} Qa7+ {[%emt 0:00:05]} 21. c5 {[%emt 0:00:49]} dxc5 {[%emt 0:00:02]} 22. bxc5 {[%emt 0:00:16]} Qa4 {[%emt 0:00:06]} 23. h3 {[%emt 0:04:30]} Rd8 {[%emt 0:00:13]} 24. Bb2 {[%emt 0:02:46]} Nb4 {[%emt 0:03:34]} 25. Re3 {[%emt 0:06:44]} Nd7 {[%emt 0:28:08]} 26. Kg1 {[%emt 0:05:15]} f6 {[%emt 0:01:24]} 27. Kh2 {[%emt 0:02:53]} Nc6 {[%emt 0:03:53]} 28. Qc1 {[%emt 0:13:45]} Qb5 {[%emt 0:03:10]} 29. Ba3 {[%emt 0:01:25]} Nf8 {[%emt 0:00:20]} 30. Nh4 {[%emt 0:02:24]} Rd3 {[%emt 0:02:11]} 31. Qf1 {[%emt 0:05:28]} Rb3 {[%emt 0:00:41]} 32. Rxb3 {[%emt 0:00:48]} Qxf1 {[%emt 0:00:09]} 33. Nxf1 {[%emt 0:00:03]} Bxb3 {[%emt 0:00:06]} 34. Ne3 {[%emt 0:00:09]} Ne6 {[%emt 0:01:43]} 35. Nhf5 {[%emt 0:01:58]} Ncd4 {[%emt 0:01:27]} 36. h4 {[%emt 0:06:30]} 0-1

[Event "CZE-ch Amateurs 2022"]
[Site "Luhacovice"]
[Date "2022.03.13"]
[Round "2.11"]
[White "Lorenc, Tomas"]
[Black "Vrzal, Filip"]
[Result "1-0"]
[ECO "A11"]
[WhiteElo "2183"]
[BlackElo "1877"]
[Annotator "ChessBase"]
[PlyCount "48"]
[EventDate "2022.03.12"]
[EventType "swiss"]
[EventCountry "CZE"]
[SourceTitle "playchess.com"]
[Source "ChessBase"]
[SourceQuality "1"]
[TimeControl "5400+30"]

1. c4 {[%emt 0:00:08]} Nf6 {[%emt 0:00:07]} 2. g3 {[%emt 0:00:05]} c6 {[%emt 0:00:03]} 3. Bg2 {[%emt 0:00:05]} d5 {[%emt 0:00:06]} 4. Nf3 {[%emt 0:01:22]} Bf5 {[%emt 0:00:18]} 5. O-O {[%emt 0:00:32]} e6 {[%emt 0:01:06]} 6. d3 {[%emt 0:03:56]} Be7 {[%emt 0:00:42]} 7. Qb3 {[%emt 0:05:25]} Qc8 {[%emt 0:00:16]} 8. Nc3 {[%emt 0:00:55]} Nbd7 {[%emt 0:00:56]} 9. Bf4 {[%emt 0:06:49]} Nc5 {[%emt 0:12:59]} 10. Qd1 {[%emt 0:00:35]} dxc4 {[%emt 0:05:07]} 11. dxc4 {[%emt 0:02:23]} O-O {[%emt 0:01:25]} 12. b4 {[%emt 0:11:04]} Rd8 {[%emt 0:03:17]} 13. Nd4 {[%emt 0:02:32]} Nce4 {[%emt 0:10:04]} 14. Nxf5 {[%emt 0:02:29]} exf5 {[%emt 0:02:53]} 15. Qb3 {[%emt 0:00:49]} Nxc3 {[%emt 0:01:56]} 16. Qxc3 {[%emt 0:00:02]} Ne4 {[%emt 0:00:10]} 17. Bxe4 {[%emt 0:11:08]} fxe4 {[%emt 0:00:31]} 18. Rad1 {[%emt 0:01:02]} Qe6 {[%emt 0:01:42]} 19. Be5 {[%emt 0:03:59]} f6 {[%emt 0:11:06]} 20. Bd4 {[%emt 0:00:17]} Bd6 {[%emt 0:01:53]} 21. a3 {[%emt 0:02:31]} Be5 {[%emt 0:14:28]} 22. e3 {[%emt 0:09:51]} h5 {[%emt 0:05:06]} 23. Bxe5 {[%emt 0:07:32]} fxe5 {[%emt 0:00:28]} 24. c5 {[%emt 0:06:35]} h4 {[%emt 0:01:45]} 1-0

[Event "CZE-ch Amateurs 2022"]
[Site "Luhacovice"]
[Date "2022.03.13"]
[Round "2.12"]
[White "Pressler, Tobias"]
[Black "Zabystrzan, Pavel"]
[Result "1/2-1/2"]
[ECO "B13"]
[WhiteElo "1783"]
[BlackElo "2162"]
[Annotator "NA"]
[PlyCount "61"]
[EventDate "2022.03.12"]
[EventType "swiss"]
[EventCountry "CZE"]
[SourceTitle "playchess.com"]
[Source "ChessBase"]
[SourceQuality "1"]
[TimeControl "5400+30"]

1. e4 {[%emt 0:00:08]} c6 {[%emt 0:00:35]} 2. d4 {[%emt 0:00:21]} d5 {[%emt 0:00:09]} 3. exd5 {[%emt 0:00:28]} cxd5 {[%emt 0:00:11]} 4. Bd3 {[%emt 0:00:48]} Nc6 {[%emt 0:00:08]} 5. c3 {[%emt 0:00:39]} Qc7 {[%emt 0:00:09]} 6. Nf3 {[%emt 0:02:15]} Bg4 {[%emt 0:00:17]} 7. h3 {[%emt 0:00:48]} Bh5 {[%emt 0:01:18]} 8. O-O {[%emt 0:01:15]} e6 {[%emt 0:00:12]} 9. Nbd2 {[%emt 0:02:09]} Nf6 {[%emt 0:03:12]} 10. Re1 {[%emt 0:02:21]} Bd6 {[%emt 0:02:40]} 11. Nf1 {[%emt 0:02:00]} Bg6 {[%emt 0:01:58]} 12. Bg5 {[%emt 0:01:29]} O-O {[%emt 0:05:02]} 13. Bh4 {[%emt 0:06:41]} a6 {[%emt 0:05:05]} 14. Bg3 {[%emt 0:01:16]} b5 {[%emt 0:10:03]} 15. Bxd6 {[%emt 0:01:07]} Qxd6 {[%emt 0:00:09]} 16. Ne5 {[%emt 0:00:09]} Bxd3 {[%emt 0:03:18]} 17. Qxd3 {[%emt 0:00:19]} Rfc8 {[%emt 0:03:25]} 18. f4 {[%emt 0:02:31]} Ne4 {[%emt 0:00:30]} 19. Nd2 {[%emt 0:01:22]} f5 {[%emt 0:00:37]} 20. Rac1 {[%emt 0:04:15]} Rab8 {[%emt 0:05:04]} 21. Ndf3 {[%emt 0:17:55]} b4 {[%emt 0:06:46]} 22. Nxc6 {[%emt 0:01:52]} Qxc6 {[%emt 0:04:42]} 23. Ne5 {[%emt 0:02:39]} Qc7 {[%emt 0:11:30]} 24. Qxa6 {[%emt 0:06:43]} Rb6 {[%emt 0:00:43]} 25. Qd3 {[%emt 0:00:09]} bxc3 {[%emt 0:00:55]} 26. bxc3 {[%emt 0:00:13]} Rb2 {[%emt 0:04:27]} 27. Qa6 {[%emt 0:01:09]} Rb6 {[%emt 0:00:10]} 28. Qd3 {[%emt 0:00:07]} Qa7 {[%emt 0:00:35]} 29. Rc2 {[%emt 0:01:38]} Qa3 {[%emt 0:02:22]} 30. Rec1 {[%emt 0:03:09]} Rb2 {[%emt 0:05:41]} 31. c4 {[%emt 0:04:03]} 1/2-1/2

[Event "CZE-ch Amateurs 2022"]
[Site "Luhacovice"]
[Date "2022.03.13"]
[Round "2.13"]
[White "Buchcar, Tomas"]
[Black "Volny, Patrik"]
[Result "1-0"]
[ECO "A30"]
[WhiteElo "2121"]
[BlackElo "1798"]
[Annotator "NA"]
[PlyCount "95"]
[EventDate "2022.03.12"]
[EventType "swiss"]
[EventCountry "CZE"]
[SourceTitle "playchess.com"]
[Source "ChessBase"]
[SourceQuality "1"]
[TimeControl "5400+30"]

1. Nf3 {[%emt 0:00:07]} Nf6 {[%emt 0:00:27]} 2. c4 {[%emt 0:00:07]} g6 {[%emt 0:00:27]} 3. b3 {[%emt 0:00:10]} c5 {[%emt 0:00:39]} 4. e3 {[%emt 0:00:41]} Bg7 {[%emt 0:00:15]} 5. Bb2 {[%emt 0:00:06]} b6 {[%emt 0:00:15]} 6. Be2 {[%emt 0:00:13]} Bb7 {[%emt 0:00:09]} 7. O-O {[%emt 0:00:17]} O-O {[%emt 0:00:30]} 8. d3 {[%emt 0:00:24]} Na6 {[%emt 0:02:40]} 9. a3 {[%emt 0:00:11]} d6 {[%emt 0:00:56]} 10. Nbd2 {[%emt 0:00:35]} h6 {[%emt 0:00:49]} 11. Qc2 {[%emt 0:03:51]} Qd7 {[%emt 0:08:57]} 12. Rfd1 {[%emt 0:14:08]} Rfc8 {[%emt 0:04:54]} 13. Rab1 {[%emt 0:05:48]} b5 {[%emt 0:02:10]} 14. Ne4 {[%emt 0:09:08]} bxc4 {[%emt 0:11:13]} 15. Nxf6+ {[%emt 0:02:15]} Bxf6 {[%emt 0:03:55]} 16. Bxf6 {[%emt 0:04:36]} cxd3 {[%emt 0:01:30]} 17. Qxd3 {[%emt 0:00:16]} exf6 {[%emt 0:01:05]} 18. Qxd6 {[%emt 0:00:14]} Qc6 {[%emt 0:02:41]} 19. Qxc6 {[%emt 0:01:54]} Rxc6 {[%emt 0:00:29]} 20. Bc4 {[%emt 0:00:53]} Rb6 {[%emt 0:06:31]} 21. Rd7 {[%emt 0:01:10]} Rf8 {[%emt 0:00:19]} 22. Rxb7 {[%emt 0:04:13]} Rxb7 {[%emt 0:01:59]} 23. Bxa6 {[%emt 0:00:06]} Rb6 {[%emt 0:00:38]} 24. Bc4 {[%emt 0:00:14]} Rd8 {[%emt 0:00:05]} 25. Kf1 {[%emt 0:00:12]} a5 {[%emt 0:00:42]} 26. a4 {[%emt 0:00:30]} Kf8 {[%emt 0:00:46]} 27. Ke2 {[%emt 0:01:24]} Rbd6 {[%emt 0:00:40]} 28. Rb2 {[%emt 0:01:44]} Ke7 {[%emt 0:01:40]} 29. Rd2 {[%emt 0:00:12]} Rxd2+ {[%emt 0:00:12]} 30. Nxd2 {[%emt 0:00:06]} f5 {[%emt 0:00:32]} 31. Nf3 {[%emt 0:02:14]} Kf6 {[%emt 0:01:06]} 32. Ne1 {[%emt 0:00:20]} g5 {[%emt 0:01:32]} 33. Nd3 {[%emt 0:00:18]} Rc8 {[%emt 0:00:36]} 34. f4 {[%emt 0:00:07]} Ke7 {[%emt 0:01:32]} 35. Ne5 {[%emt 0:04:47]} gxf4 {[%emt 0:09:59]} 36. exf4 {[%emt 0:00:14]} Rg8 {[%emt 0:03:09]} 37. g3 {[%emt 0:00:15]} Rg7 {[%emt 0:01:04]} 38. Bd3 {[%emt 0:01:52]} Ke6 {[%emt 0:01:50]} 39. Nc6 {[%emt 0:00:28]} h5 {[%emt 0:00:15]} 40. Nxa5 {[%emt 0:05:48]} h4 {[%emt 0:00:35]} 41. Kf3 {[%emt 0:00:16]} hxg3 {[%emt 0:00:29]} 42. hxg3 {[%emt 0:00:02]} f6 {[%emt 0:00:36]} 43. Bb5 {[%emt 0:03:52]} Kd5 {[%emt 0:01:03]} 44. Nc4 {[%emt 0:00:17]} Kd4 {[%emt 0:00:44]} 45. Nd6 {[%emt 0:00:16]} Kc3 {[%emt 0:00:38]} 46. Nxf5 {[%emt 0:00:49]} Ra7 {[%emt 0:00:17]} 47. Bc4 {[%emt 0:00:26]} Kb4 {[%emt 0:02:24]} 48. Ne3 {[%emt 0:00:35]} 1-0

[Event "CZE-ch Amateurs 2022"]
[Site "Luhacovice"]
[Date "2022.03.13"]
[Round "2.14"]
[White "Svacina, Tobias"]
[Black "Bures, Vit"]
[Result "1-0"]
[ECO "C51"]
[WhiteElo "1749"]
[BlackElo "2121"]
[Annotator "NA"]
[PlyCount "57"]
[EventDate "2022.03.12"]
[EventType "swiss"]
[EventCountry "CZE"]
[SourceTitle "playchess.com"]
[Source "ChessBase"]
[SourceQuality "1"]
[TimeControl "5400+30"]

1. e4 {[%emt 0:00:23]} e5 {[%emt 0:00:40]} 2. Nf3 {[%emt 0:00:29]} Nc6 {[%emt 0:00:07]} 3. Bc4 {[%emt 0:00:53]} Bc5 {[%emt 0:00:04]} 4. b4 {[%emt 0:01:57]} Bxb4 {[%emt 0:00:06]} 5. c3 {[%emt 0:00:16]} Be7 {[%emt 0:00:03]} 6. d4 {[%emt 0:00:32]} Na5 {[%emt 0:00:02]} 7. Bd3 {[%emt 0:00:38]} d6 {[%emt 0:00:07]} 8. dxe5 {[%emt 0:00:40]} dxe5 {[%emt 0:00:31]} 9. Nxe5 {[%emt 0:00:44]} Nf6 {[%emt 0:00:00]} 10. O-O {[%emt 0:01:24]} O-O {[%emt 0:00:04]} 11. Qc2 {[%emt 0:00:36]} Be6 {[%emt 0:04:54]} 12. Nd2 {[%emt 0:00:21]} c5 {[%emt 0:02:54]} 13. f4 {[%emt 0:02:12]} Qc7 {[%emt 0:01:51]} 14. Ndf3 {[%emt 0:00:07]} c4 {[%emt 0:03:09]} 15. Be2 {[%emt 0:00:05]} Ng4 {[%emt 0:06:27]} 16. Nxg4 {[%emt 0:08:55]} Bxg4 {[%emt 0:00:11]} 17. Nd4 {[%emt 0:00:09]} Bxe2 {[%emt 0:00:53]} 18. Qxe2 {[%emt 0:00:11]} Rfe8 {[%emt 0:01:22]} 19. Kh1 {[%emt 0:14:38]} Rad8 {[%emt 0:08:36]} 20. f5 {[%emt 0:06:28]} Bf6 {[%emt 0:05:10]} 21. Bf4 {[%emt 0:02:36]} Be5 {[%emt 0:24:02]} 22. Bxe5 {[%emt 0:02:14]} Qxe5 {[%emt 0:00:48]} 23. f6 {[%emt 0:00:57]} Qxe4 {[%emt 0:01:20]} 24. Qh5 {[%emt 0:01:13]} Nc6 {[%emt 0:08:27]} 25. Nf5 {[%emt 0:06:21]} Ne5 {[%emt 0:10:58]} 26. Rae1 {[%emt 0:12:57]} Qg4 {[%emt 0:03:09]} 27. Rxe5 {[%emt 0:00:36]} Qxh5 {[%emt 0:01:10]} 28. Ne7+ {[%emt 0:00:08]} Rxe7 {[%emt 0:00:19]} 29. fxe7 {[%emt 0:00:09]} 1-0

[Event "CZE-ch Amateurs 2022"]
[Site "Luhacovice"]
[Date "2022.03.13"]
[Round "2.15"]
[White "Pilch, Roman"]
[Black "Molnar, Ladislav"]
[Result "1-0"]
[ECO "D33"]
[WhiteElo "2136"]
[BlackElo "1775"]
[Annotator "ChessBase"]
[PlyCount "73"]
[EventDate "2022.03.12"]
[EventType "swiss"]
[EventCountry "CZE"]
[SourceTitle "playchess.com"]
[Source "ChessBase"]
[SourceQuality "1"]
[TimeControl "5400+30"]

1. Nf3 {[%emt 0:00:06]} Nf6 {[%emt 0:00:25]} 2. c4 {[%emt 0:00:09]} c5 {[%emt 0:00:31]} 3. g3 {[%emt 0:00:20]} e6 {[%emt 0:01:52]} 4. Bg2 {[%emt 0:00:30]} Nc6 {[%emt 0:00:49]} 5. O-O {[%emt 0:00:27]} d5 {[%emt 0:01:39]} 6. cxd5 {[%emt 0:00:39]} exd5 {[%emt 0:00:30]} 7. d4 {[%emt 0:00:29]} Be6 {[%emt 0:03:54]} 8. Nc3 {[%emt 0:00:41]} c4 {[%emt 0:05:01]} 9. Ng5 {[%emt 0:04:52]} Bb4 {[%emt 0:06:48]} 10. a3 {[%emt 0:06:27]} Bxc3 {[%emt 0:02:50]} 11. bxc3 {[%emt 0:05:54]} O-O {[%emt 0:02:25]} 12. f3 {[%emt 0:08:26]} h6 {[%emt 0:03:14]} 13. Nxe6 {[%emt 0:02:51]} fxe6 {[%emt 0:00:17]} 14. Rb1 {[%emt 0:02:30]} Na5 {[%emt 0:05:00]} 15. e4 {[%emt 0:00:38]} Nb3 {[%emt 0:01:29]} 16. Qc2 {[%emt 0:05:02]} a5 {[%emt 0:05:23]} 17. e5 {[%emt 0:01:36]} Nh7 {[%emt 0:02:59]} 18. Qg6 {[%emt 0:01:32]} Qe8 {[%emt 0:00:25]} 19. Qxe8 {[%emt 0:03:11]} Raxe8 {[%emt 0:01:55]} 20. f4 {[%emt 0:00:26]} Rd8 {[%emt 0:07:56]} 21. Bh3 {[%emt 0:02:55]} Kf7 {[%emt 0:02:29]} 22. a4 {[%emt 0:05:38]} g6 {[%emt 0:04:13]} 23. Rf2 {[%emt 0:03:41]} h5 {[%emt 0:01:35]} 24. Bg2 {[%emt 0:01:39]} Rh8 {[%emt 0:02:57]} 25. Ba3 {[%emt 0:02:17]} Nf8 {[%emt 0:00:46]} 26. Bf3 {[%emt 0:01:02]} Nd7 {[%emt 0:00:29]} 27. Bd1 {[%emt 0:00:30]} Rc8 {[%emt 0:05:36]} 28. Bd6 {[%emt 0:05:15]} Rc6 {[%emt 0:01:58]} 29. Kg2 {[%emt 0:01:24]} Rhc8 {[%emt 0:00:34]} 30. Kh3 {[%emt 0:01:28]} Nb6 {[%emt 0:01:52]} 31. Bxb3 {[%emt 0:02:32]} cxb3 {[%emt 0:00:22]} 32. Rxb3 {[%emt 0:00:29]} Nxa4 {[%emt 0:01:51]} 33. Rxb7+ {[%emt 0:00:27]} Kg8 {[%emt 0:03:03]} 34. Ra2 {[%emt 0:01:37]} Nxc3 {[%emt 0:02:31]} 35. Rxa5 {[%emt 0:00:28]} Ne4 {[%emt 0:00:18]} 36. Raa7 {[%emt 0:02:35]} Nxd6 {[%emt 0:00:41]} 37. exd6 {[%emt 0:00:18]} 1-0

[Event "CZE-ch Amateurs 2022"]
[Site "Luhacovice"]
[Date "2022.03.13"]
[Round "2.16"]
[White "Travnicek, Jaroslav"]
[Black "Toman, Jan"]
[Result "0-1"]
[ECO "B22"]
[WhiteElo "1748"]
[BlackElo "2127"]
[Annotator "ChessBase"]
[PlyCount "56"]
[EventDate "2022.03.12"]
[EventType "swiss"]
[EventCountry "CZE"]
[SourceTitle "playchess.com"]
[Source "ChessBase"]
[SourceQuality "1"]
[TimeControl "5400+30"]

1. e4 {[%emt 0:01:45]} e6 {[%emt 0:00:26]} 2. d4 {[%emt 0:00:20]} d5 {[%emt 0:00:18]} 3. exd5 {[%emt 0:01:16]} exd5 {[%emt 0:00:07]} 4. Nf3 {[%emt 0:00:22]} Nf6 {[%emt 0:00:29]} 5. Bd3 {[%emt 0:00:36]} c5 {[%emt 0:00:34]} 6. c3 {[%emt 0:02:14]} c4 {[%emt 0:04:28]} 7. Bc2 {[%emt 0:01:27]} Bg4 {[%emt 0:03:29]} 8. h3 {[%emt 0:04:47]} Bh5 {[%emt 0:01:31]} 9. Bg5 {[%emt 0:02:38]} Be7 {[%emt 0:01:22]} 10. O-O {[%emt 0:02:47]} O-O {[%emt 0:00:27]} 11. Re1 {[%emt 0:01:19]} Nbd7 {[%emt 0:03:19]} 12. Nbd2 {[%emt 0:01:16]} Re8 {[%emt 0:03:20]} 13. Nf1 {[%emt 0:07:27]} Ne4 {[%emt 0:13:34]} 14. Bxe7 {[%emt 0:04:28]} Rxe7 {[%emt 0:02:00]} 15. Ng3 {[%emt 0:03:25]} Nxg3 {[%emt 0:05:03]} 16. fxg3 {[%emt 0:01:17]} Nf6 {[%emt 0:13:54]} 17. Rxe7 {[%emt 0:08:39]} Qxe7 {[%emt 0:00:11]} 18. g4 {[%emt 0:03:52]} Bg6 {[%emt 0:04:47]} 19. Bxg6 {[%emt 0:01:09]} hxg6 {[%emt 0:00:30]} 20. Qe1 {[%emt 0:02:07]} Qc7 {[%emt 0:01:12]} 21. Nd2 {[%emt 0:11:27]} b5 {[%emt 0:06:02]} 22. a3 {[%emt 0:06:03]} a5 {[%emt 0:00:40]} 23. Qf1 {[%emt 0:01:35]} Rb8 {[%emt 0:01:00]} 24. Qf3 {[%emt 0:01:32]} Qd6 {[%emt 0:07:52]} 25. Rf1 {[%emt 0:03:42]} Rb7 {[%emt 0:00:13]} 26. Qf4 {[%emt 0:01:45]} Qxf4 {[%emt 0:03:44]} 27. Rxf4 {[%emt 0:00:14]} b4 {[%emt 0:00:14]} 28. axb4 {[%emt 0:01:38]} axb4 {[%emt 0:00:04]} 0-1